[Event "Titled Tuesday Blitz April 4 Early 2023"]
[White "Indjic, Aleksandar"]
[Black "Kozin, Yuri"]
[WhiteFideId "911925"]
[BlackFideId "4129920"]
[WhiteElo "2614"]
[BlackElo "2602"]
[Result "1-0"]
[Round "02"]
[TimeControl "180+2"]
[Date "2023.04.04"]
[WhiteClock "0:01:47"]
[BlackClock "0:00:20"]

1. d4 {[%clk 0:03:00]}  d5 {[%clk 0:02:31]} 2. c4 {[%clk 0:03:01]}  c6 {[%clk 0:02:31]} 3. cxd5 {[%clk 0:03:01]}  cxd5 {[%clk 0:02:32]} 4. Bg5 {[%clk 0:03:00]}  Nf6 {[%clk 0:02:29]} 5. Bxf6 {[%clk 0:02:59]}  gxf6 {[%clk 0:02:30]} 6. Nc3 {[%clk 0:02:59]}  Nc6 {[%clk 0:02:30]} 7. e3 {[%clk 0:02:59]}  e6 {[%clk 0:02:29]} 8. Nge2 {[%clk 0:02:59]}  Bd6 {[%clk 0:02:24]} 9. Ng3 {[%clk 0:02:59]}  f5 {[%clk 0:02:19]} 10. Nh5 {[%clk 0:02:59]}  Bd7 {[%clk 0:02:12]} 11. g3 {[%clk 0:02:55]}  Rc8 {[%clk 0:02:11]} 12. Rc1 {[%clk 0:02:54]}  a6 {[%clk 0:02:10]} 13. Be2 {[%clk 0:02:54]}  Na5 {[%clk 0:01:58]} 14. O-O {[%clk 0:02:53]}  O-O {[%clk 0:01:52]} 15. Bd3 {[%clk 0:02:50]}  Kh8 {[%clk 0:01:51]} 16. Ne2 {[%clk 0:02:49]}  Rxc1 {[%clk 0:01:49]} 17. Qxc1 {[%clk 0:02:50]}  Qc7 {[%clk 0:01:33]} 18. Qd2 {[%clk 0:02:48]}  Nc4 {[%clk 0:01:28]} 19. Bxc4 {[%clk 0:02:47]}  Qxc4 {[%clk 0:01:29]} 20. e4 {[%clk 0:02:45]}  Rg8 {[%clk 0:01:06]} 21. Nf6 {[%clk 0:02:33]}  Rg6 {[%clk 0:00:56]} 22. Nxd7 {[%clk 0:02:31]}  fxe4 {[%clk 0:00:54]} 23. Ne5 {[%clk 0:02:31]}  Bxe5 {[%clk 0:00:52]} 24. dxe5 {[%clk 0:02:32]}  Qc7 {[%clk 0:00:48]} 25. Qd4 {[%clk 0:02:25]}  Rg5 {[%clk 0:00:44]} 26. Rc1 {[%clk 0:02:25]}  Qxe5 {[%clk 0:00:42]} 27. Qxe5+ {[%clk 0:02:21]}  Rxe5 {[%clk 0:00:42]} 28. Rc7 {[%clk 0:02:21]}  Kg7 {[%clk 0:00:37]} 29. Rxb7 {[%clk 0:02:21]}  e3 {[%clk 0:00:38]} 30. f3 {[%clk 0:02:18]}  d4 {[%clk 0:00:36]} 31. Rd7 {[%clk 0:01:53]}  Rc5 {[%clk 0:00:30]} 32. Nxd4 {[%clk 0:01:53]}  Rc1+ {[%clk 0:00:27]} 33. Kg2 {[%clk 0:01:53]}  Kf6 {[%clk 0:00:28]} 34. f4 {[%clk 0:01:53]}  Rd1 {[%clk 0:00:27]} 35. Kf3 {[%clk 0:01:53]}  Rd2 {[%clk 0:00:23]} 36. Kxe3 {[%clk 0:01:53]}  Rxh2 {[%clk 0:00:20]} 37. Rb7 {[%clk 0:01:51]}  Rg2 {[%clk 0:00:20]} 38. Ne2 {[%clk 0:01:51]}  h5 {[%clk 0:00:19]} 39. Ra7 {[%clk 0:01:48]}  a5 {[%clk 0:00:19]} 40. Rxa5 {[%clk 0:01:47]}  Rh2 {[%clk 0:00:20]} 1-0


[Site "https://www.chess.com"]

[Event "Titled Tuesday Blitz April 4 Early 2023"]
[White "Zhigalko, Sergei"]
[Black "Gontcharov, Vladislav"]
[WhiteFideId "13502956"]
[BlackFideId "4123492"]
[WhiteElo "2626"]
[BlackElo "2420"]
[Result "1-0"]
[Round "02"]
[TimeControl "180+2"]
[Date "2023.04.04"]
[WhiteClock "0:00:04"]
[BlackClock "0:00:03"]

1. e4 {[%clk 0:03:00]}  e6 {[%clk 0:02:59]} 2. d4 {[%clk 0:03:00]}  d5 {[%clk 0:03:00]} 3. e5 {[%clk 0:03:01]}  c5 {[%clk 0:03:00]} 4. c3 {[%clk 0:03:01]}  Nc6 {[%clk 0:03:00]} 5. Nf3 {[%clk 0:03:02]}  Nge7 {[%clk 0:02:58]} 6. Na3 {[%clk 0:03:00]}  cxd4 {[%clk 0:02:58]} 7. cxd4 {[%clk 0:03:00]}  Nf5 {[%clk 0:02:58]} 8. Nc2 {[%clk 0:03:01]}  Nh4 {[%clk 0:02:58]} 9. a3 {[%clk 0:02:49]}  Nxf3+ {[%clk 0:02:48]} 10. Qxf3 {[%clk 0:02:49]}  Qb6 {[%clk 0:02:47]} 11. Qe3 {[%clk 0:02:21]}  Bd7 {[%clk 0:02:35]} 12. b4 {[%clk 0:02:18]}  Rc8 {[%clk 0:02:33]} 13. Bd3 {[%clk 0:02:18]}  Be7 {[%clk 0:01:50]} 14. O-O {[%clk 0:02:09]}  O-O {[%clk 0:01:46]} 15. Bd2 {[%clk 0:01:59]}  f5 {[%clk 0:01:20]} 16. f4 {[%clk 0:01:13]}  Nd8 {[%clk 0:01:10]} 17. b5 {[%clk 0:01:09]}  Nf7 {[%clk 0:01:06]} 18. a4 {[%clk 0:01:05]}  Qd8 {[%clk 0:00:46]} 19. Rac1 {[%clk 0:00:55]}  Kh8 {[%clk 0:00:36]} 20. Na1 {[%clk 0:00:50]}  Rxc1 {[%clk 0:00:30]} 21. Rxc1 {[%clk 0:00:50]}  Qb8 {[%clk 0:00:30]} 22. Nb3 {[%clk 0:00:46]}  b6 {[%clk 0:00:27]} 23. Qe1 {[%clk 0:00:43]}  Rc8 {[%clk 0:00:25]} 24. Na1 {[%clk 0:00:39]}  Rxc1 {[%clk 0:00:24]} 25. Qxc1 {[%clk 0:00:39]}  Qc8 {[%clk 0:00:21]} 26. Qe1 {[%clk 0:00:33]}  Qf8 {[%clk 0:00:18]} 27. Nc2 {[%clk 0:00:33]}  h6 {[%clk 0:00:16]} 28. Nb4 {[%clk 0:00:25]}  Nd8 {[%clk 0:00:15]} 29. Na6 {[%clk 0:00:20]}  Nb7 {[%clk 0:00:14]} 30. Qc1 {[%clk 0:00:18]}  Qc8 {[%clk 0:00:14]} 31. Qxc8+ {[%clk 0:00:15]}  Bxc8 {[%clk 0:00:14]} 32. Nb8 {[%clk 0:00:16]}  Nd8 {[%clk 0:00:10]} 33. a5 {[%clk 0:00:16]}  Kg8 {[%clk 0:00:06]} 34. Kf2 {[%clk 0:00:06]}  Kf8 {[%clk 0:00:06]} 35. Kf3 {[%clk 0:00:06]}  Ke8 {[%clk 0:00:06]} 36. g4 {[%clk 0:00:07]}  g6 {[%clk 0:00:07]} 37. h3 {[%clk 0:00:06]}  Bd7 {[%clk 0:00:03]} 38. Be1 {[%clk 0:00:04]}  Nb7 {[%clk 0:00:03]} 39. axb6 {[%clk 0:00:03]}  axb6 {[%clk 0:00:03]} 40. Nc6 {[%clk 0:00:04]} 1-0


[Site "https://www.chess.com"]

[Event "Titled Tuesday Blitz April 4 Early 2023"]
[White "Zakhartsov, Vladimir"]
[Black "Postnikov, Daniil"]
[WhiteFideId "4145097"]
[BlackFideId "4166329"]
[WhiteElo "2497"]
[BlackElo "2261"]
[Result "1-0"]
[Round "02"]
[TimeControl "180+2"]
[Date "2023.04.04"]
[WhiteClock "0:00:06"]
[BlackClock "0:00:01"]

1. e4 {[%clk 0:02:56]}  e6 {[%clk 0:02:59]} 2. d4 {[%clk 0:02:53]}  d5 {[%clk 0:02:59]} 3. Nd2 {[%clk 0:02:54]}  Nf6 {[%clk 0:02:56]} 4. Bd3 {[%clk 0:02:54]}  dxe4 {[%clk 0:02:54]} 5. Nxe4 {[%clk 0:02:55]}  Nbd7 {[%clk 0:02:55]} 6. Nf3 {[%clk 0:02:54]}  Be7 {[%clk 0:02:54]} 7. Qe2 {[%clk 0:02:53]}  O-O {[%clk 0:02:54]} 8. Bg5 {[%clk 0:02:53]}  h6 {[%clk 0:02:37]} 9. h4 {[%clk 0:02:47]}  Nd5 {[%clk 0:02:33]} 10. Bd2 {[%clk 0:02:44]}  c5 {[%clk 0:02:28]} 11. dxc5 {[%clk 0:02:43]}  Nxc5 {[%clk 0:02:28]} 12. Nxc5 {[%clk 0:02:42]}  Bxc5 {[%clk 0:02:27]} 13. O-O-O {[%clk 0:02:43]}  Qc7 {[%clk 0:02:23]} 14. g4 {[%clk 0:02:41]}  Nf4 {[%clk 0:02:19]} 15. Bxf4 {[%clk 0:02:38]}  Qxf4+ {[%clk 0:02:20]} 16. Kb1 {[%clk 0:02:39]}  b6 {[%clk 0:02:09]} 17. Be4 {[%clk 0:02:31]}  Rb8 {[%clk 0:02:05]} 18. g5 {[%clk 0:02:32]}  Ba6 {[%clk 0:01:52]} 19. Qe1 {[%clk 0:02:20]}  h5 {[%clk 0:01:46]} 20. g6 {[%clk 0:02:07]}  fxg6 {[%clk 0:01:46]} 21. Rg1 {[%clk 0:01:58]}  Rfd8 {[%clk 0:01:37]} 22. Rc1 {[%clk 0:01:51]}  Rbc8 {[%clk 0:01:34]} 23. Rxg6 {[%clk 0:01:45]}  Bc4 {[%clk 0:01:25]} 24. Qg1 {[%clk 0:01:24]}  Rc7 {[%clk 0:01:21]} 25. Ng5 {[%clk 0:01:18]}  Qxh4 {[%clk 0:01:06]} 26. Nxe6 {[%clk 0:01:08]}  Bxe6 {[%clk 0:01:03]} 27. Rxe6 {[%clk 0:01:08]}  Qg4 {[%clk 0:00:59]} 28. Qxg4 {[%clk 0:00:50]}  hxg4 {[%clk 0:01:00]} 29. Rg6 {[%clk 0:00:51]}  Bxf2 {[%clk 0:00:59]} 30. Rxg4 {[%clk 0:00:51]}  Rcd7 {[%clk 0:00:49]} 31. Bd3 {[%clk 0:00:50]}  Rd4 {[%clk 0:00:44]} 32. Rg2 {[%clk 0:00:39]}  Bh4 {[%clk 0:00:45]} 33. a3 {[%clk 0:00:31]}  Bf6 {[%clk 0:00:44]} 34. Rf1 {[%clk 0:00:30]}  Kf7 {[%clk 0:00:43]} 35. Bg6+ {[%clk 0:00:27]}  Kf8 {[%clk 0:00:41]} 36. Bd3 {[%clk 0:00:19]}  Kf7 {[%clk 0:00:40]} 37. Bg6+ {[%clk 0:00:19]}  Kf8 {[%clk 0:00:39]} 38. Ka2 {[%clk 0:00:19]}  Rd1 {[%clk 0:00:33]} 39. Rff2 {[%clk 0:00:18]}  R8d5 {[%clk 0:00:29]} 40. Re2 {[%clk 0:00:14]}  Re5 {[%clk 0:00:27]} 41. Ref2 {[%clk 0:00:11]}  Ke7 {[%clk 0:00:24]} 42. Bd3 {[%clk 0:00:11]}  Kd6 {[%clk 0:00:19]} 43. Rg4 {[%clk 0:00:11]}  Rde1 {[%clk 0:00:12]} 44. Rc4 {[%clk 0:00:10]}  Rg1 {[%clk 0:00:08]} 45. Rc8 {[%clk 0:00:09]}  Ree1 {[%clk 0:00:07]} 46. Kb3 {[%clk 0:00:07]}  a5 {[%clk 0:00:03]} 47. a4 {[%clk 0:00:07]}  Rb1 {[%clk 0:00:02]} 48. c3 {[%clk 0:00:07]}  Rbd1 {[%clk 0:00:03]} 49. Bc2 {[%clk 0:00:07]}  Rdf1 {[%clk 0:00:03]} 50. Rd2+ {[%clk 0:00:06]}  Ke7 {[%clk 0:00:03]} 51. Rc7+ {[%clk 0:00:06]}  Ke6 {[%clk 0:00:01]} 52. Rc6+ {[%clk 0:00:06]} 1-0


[Site "https://www.chess.com"]

[Event "Titled Tuesday Blitz April 4 Early 2023"]
[White "Fiorito, Francisco"]
[Black "Hayrapetyan, Artavazd R."]
[WhiteFideId "180165"]
[BlackFideId "13304240"]
[WhiteElo "2341"]
[BlackElo "2417"]
[Result "0-1"]
[Round "02"]
[TimeControl "180+2"]
[Date "2023.04.04"]
[WhiteClock "0:00:03"]
[BlackClock "0:00:09"]

1. d4 {[%clk 0:03:00]}  Nf6 {[%clk 0:02:59]} 2. Bf4 {[%clk 0:03:00]}  d5 {[%clk 0:02:59]} 3. e3 {[%clk 0:03:01]}  c5 {[%clk 0:02:59]} 4. dxc5 {[%clk 0:03:01]}  e6 {[%clk 0:02:57]} 5. b4 {[%clk 0:02:57]}  a5 {[%clk 0:02:57]} 6. c3 {[%clk 0:02:55]}  Bd7 {[%clk 0:02:41]} 7. Qb3 {[%clk 0:02:27]}  axb4 {[%clk 0:02:38]} 8. cxb4 {[%clk 0:02:21]}  b6 {[%clk 0:02:38]} 9. Nf3 {[%clk 0:01:33]}  bxc5 {[%clk 0:02:37]} 10. bxc5 {[%clk 0:01:34]}  Bxc5 {[%clk 0:02:32]} 11. Bd3 {[%clk 0:01:34]}  O-O {[%clk 0:02:21]} 12. O-O {[%clk 0:01:33]}  Qa5 {[%clk 0:02:20]} 13. Nc3 {[%clk 0:01:24]}  Nh5 {[%clk 0:02:05]} 14. Be5 {[%clk 0:01:11]}  Nc6 {[%clk 0:02:05]} 15. Rfc1 {[%clk 0:00:41]}  Rfc8 {[%clk 0:01:26]} 16. Qd1 {[%clk 0:00:27]}  Ba3 {[%clk 0:01:01]} 17. Rc2 {[%clk 0:00:20]}  Be8 {[%clk 0:00:44]} 18. Ng5 {[%clk 0:00:20]}  g6 {[%clk 0:00:33]} 19. Bg3 {[%clk 0:00:08]}  Nxg3 {[%clk 0:00:29]} 20. hxg3 {[%clk 0:00:09]}  Nb4 {[%clk 0:00:30]} 21. Ne2 {[%clk 0:00:05]}  Nxc2 {[%clk 0:00:30]} 22. Bxc2 {[%clk 0:00:06]}  Ba4 {[%clk 0:00:24]} 23. Bxa4 {[%clk 0:00:05]}  Qxa4 {[%clk 0:00:25]} 24. Qd3 {[%clk 0:00:06]}  Qc2 {[%clk 0:00:24]} 25. Qb5 {[%clk 0:00:05]}  Rab8 {[%clk 0:00:14]} 26. Qa6 {[%clk 0:00:02]}  Ra8 {[%clk 0:00:14]} 27. Qb7 {[%clk 0:00:02]}  Qc7 {[%clk 0:00:14]} 28. Qb3 {[%clk 0:00:02]}  Be7 {[%clk 0:00:12]} 29. Nf3 {[%clk 0:00:01]}  Bf6 {[%clk 0:00:13]} 30. Ned4 {[%clk 0:00:01]}  Qc4 {[%clk 0:00:12]} 31. Qb6 {[%clk 0:00:01]}  Rcb8 {[%clk 0:00:09]} 32. Qd6 {[%clk 0:00:01]}  Rd8 {[%clk 0:00:10]} 33. Qf4 {[%clk 0:00:02]}  Bxd4 {[%clk 0:00:10]} 34. exd4 {[%clk 0:00:03]}  Rxa2 {[%clk 0:00:08]} 35. Rxa2 {[%clk 0:00:03]}  Qxa2 {[%clk 0:00:09]} 36. Ne5 {[%clk 0:00:04]}  Qb1+ {[%clk 0:00:08]} 37. Kh2 {[%clk 0:00:04]}  Qf5 {[%clk 0:00:08]} 38. Qc1 {[%clk 0:00:04]}  Rb8 {[%clk 0:00:08]} 39. g4 {[%clk 0:00:04]}  Qf6 {[%clk 0:00:08]} 40. Qc7 {[%clk 0:00:04]}  Re8 {[%clk 0:00:08]} 41. Kg3 {[%clk 0:00:04]}  Qe7 {[%clk 0:00:08]} 42. Qc6 {[%clk 0:00:04]}  Rd8 {[%clk 0:00:08]} 43. f4 {[%clk 0:00:04]}  Rb8 {[%clk 0:00:07]} 44. g5 {[%clk 0:00:04]}  h5 {[%clk 0:00:06]} 45. gxh6 {[%clk 0:00:03]}  Rb3+ {[%clk 0:00:06]} 46. Nf3 {[%clk 0:00:04]}  Kh7 {[%clk 0:00:06]} 47. Qc2 {[%clk 0:00:04]}  Re3 {[%clk 0:00:06]} 48. Qd2 {[%clk 0:00:05]}  Qa3 {[%clk 0:00:06]} 49. Kg4 {[%clk 0:00:05]}  Rxf3 {[%clk 0:00:05]} 50. gxf3 {[%clk 0:00:05]}  Qb3 {[%clk 0:00:05]} 51. Qh2 {[%clk 0:00:04]}  Qd3 {[%clk 0:00:05]} 52. Qf2 {[%clk 0:00:05]}  Qf5+ {[%clk 0:00:05]} 53. Kg3 {[%clk 0:00:05]}  Kxh6 {[%clk 0:00:06]} 54. Qa2 {[%clk 0:00:05]}  Kg7 {[%clk 0:00:06]} 55. Qa7 {[%clk 0:00:04]}  Qd3 {[%clk 0:00:06]} 56. Qb6 {[%clk 0:00:03]}  Qd1 {[%clk 0:00:05]} 57. Qa7 {[%clk 0:00:02]}  Qg1+ {[%clk 0:00:05]} 58. Kh3 {[%clk 0:00:03]}  Qf2 {[%clk 0:00:05]} 59. Qa3 {[%clk 0:00:02]}  Qxd4 {[%clk 0:00:05]} 60. Kg3 {[%clk 0:00:03]}  Qf6 {[%clk 0:00:06]} 61. Qe3 {[%clk 0:00:02]}  Qa1 {[%clk 0:00:06]} 62. Kh3 {[%clk 0:00:02]}  Qb2 {[%clk 0:00:05]} 63. Kg3 {[%clk 0:00:02]}  Qf6 {[%clk 0:00:06]} 64. Qd3 {[%clk 0:00:02]}  g5 {[%clk 0:00:05]} 65. fxg5 {[%clk 0:00:02]}  Qxg5+ {[%clk 0:00:06]} 66. Kf2 {[%clk 0:00:02]}  Qf5 {[%clk 0:00:07]} 67. Qd4+ {[%clk 0:00:03]}  Qf6 {[%clk 0:00:08]} 68. Qh4 {[%clk 0:00:04]}  Qg6 {[%clk 0:00:08]} 69. Qd4+ {[%clk 0:00:03]}  Qf6 {[%clk 0:00:09]} 70. Qd2 {[%clk 0:00:04]}  Qe5 {[%clk 0:00:09]} 71. Qc2 {[%clk 0:00:04]}  d4 {[%clk 0:00:09]} 72. Qd3 {[%clk 0:00:04]}  Kf6 {[%clk 0:00:09]} 73. Qh7 {[%clk 0:00:04]}  Qe3+ {[%clk 0:00:09]} 74. Kg3 {[%clk 0:00:04]}  Qg1+ {[%clk 0:00:09]} 75. Kf4 {[%clk 0:00:04]}  Qg5+ {[%clk 0:00:09]} 76. Ke4 {[%clk 0:00:04]}  Qe5+ {[%clk 0:00:07]} 77. Kd3 {[%clk 0:00:05]}  Qf5+ {[%clk 0:00:08]} 78. Qxf5+ {[%clk 0:00:04]}  Kxf5 {[%clk 0:00:09]} 79. Kxd4 {[%clk 0:00:03]}  Kf4 {[%clk 0:00:09]} 0-1


[Site "https://www.chess.com"]

[Event "Titled Tuesday Blitz April 4 Early 2023"]
[White "Moroni, Luca Jr"]
[Black "Martic, Ivan"]
[WhiteFideId "865834"]
[BlackFideId "929301"]
[WhiteElo "2569"]
[BlackElo "2360"]
[Result "1-0"]
[Round "02"]
[TimeControl "180+2"]
[Date "2023.04.04"]
[WhiteClock "0:00:40"]
[BlackClock "0:00:03"]

1. c4 {[%clk 0:03:00]}  g6 {[%clk 0:02:58]} 2. d4 {[%clk 0:02:59]}  Bg7 {[%clk 0:02:58]} 3. Nc3 {[%clk 0:03:00]}  Nf6 {[%clk 0:02:58]} 4. e4 {[%clk 0:03:00]}  d6 {[%clk 0:02:59]} 5. Bd3 {[%clk 0:03:00]}  O-O {[%clk 0:02:59]} 6. Nge2 {[%clk 0:03:01]}  Nc6 {[%clk 0:02:59]} 7. O-O {[%clk 0:03:00]}  Nh5 {[%clk 0:02:57]} 8. Be3 {[%clk 0:02:58]}  e5 {[%clk 0:02:56]} 9. d5 {[%clk 0:02:59]}  Ne7 {[%clk 0:02:56]} 10. Qd2 {[%clk 0:02:51]}  f5 {[%clk 0:02:54]} 11. exf5 {[%clk 0:02:51]}  gxf5 {[%clk 0:02:55]} 12. f4 {[%clk 0:02:51]}  Ng6 {[%clk 0:02:53]} 13. fxe5 {[%clk 0:02:46]}  Bxe5 {[%clk 0:02:42]} 14. Nd4 {[%clk 0:02:39]}  f4 {[%clk 0:01:59]} 15. Bf2 {[%clk 0:02:39]}  f3 {[%clk 0:01:37]} 16. Bxg6 {[%clk 0:02:28]}  hxg6 {[%clk 0:01:11]} 17. Nxf3 {[%clk 0:02:27]}  Rxf3 {[%clk 0:01:05]} 18. gxf3 {[%clk 0:02:28]}  Bh3 {[%clk 0:00:55]} 19. Qh6 {[%clk 0:02:22]}  Bg7 {[%clk 0:00:36]} 20. Qxg6 {[%clk 0:02:06]}  Nf4 {[%clk 0:00:36]} 21. Qg3 {[%clk 0:02:05]}  Qf6 {[%clk 0:00:26]} 22. Rfe1 {[%clk 0:01:25]}  Rf8 {[%clk 0:00:26]} 23. Rad1 {[%clk 0:01:09]}  Kh8 {[%clk 0:00:21]} 24. Qh4+ {[%clk 0:01:00]}  Qxh4 {[%clk 0:00:19]} 25. Bxh4 {[%clk 0:01:01]}  Be5 {[%clk 0:00:15]} 26. Bg3 {[%clk 0:00:58]}  Rg8 {[%clk 0:00:15]} 27. Kf2 {[%clk 0:00:57]}  Bf5 {[%clk 0:00:10]} 28. Rxe5 {[%clk 0:00:49]}  dxe5 {[%clk 0:00:10]} 29. Bxf4 {[%clk 0:00:48]}  exf4 {[%clk 0:00:11]} 30. Ne2 {[%clk 0:00:45]}  Rf8 {[%clk 0:00:07]} 31. Rd4 {[%clk 0:00:44]}  Bb1 {[%clk 0:00:06]} 32. a3 {[%clk 0:00:44]}  Re8 {[%clk 0:00:04]} 33. Nxf4 {[%clk 0:00:43]}  Kh7 {[%clk 0:00:04]} 34. c5 {[%clk 0:00:41]}  Rd8 {[%clk 0:00:04]} 35. d6 {[%clk 0:00:40]}  cxd6 {[%clk 0:00:05]} 36. cxd6 {[%clk 0:00:41]}  Rd7 {[%clk 0:00:04]} 37. Ne6 {[%clk 0:00:40]}  Kg8 {[%clk 0:00:04]} 38. Nc5 {[%clk 0:00:40]}  Rd8 {[%clk 0:00:04]} 39. Nxb7 {[%clk 0:00:40]}  Rb8 {[%clk 0:00:03]} 40. d7 {[%clk 0:00:40]} 1-0


[Site "https://www.chess.com"]

[Event "Titled Tuesday Blitz April 4 Early 2023"]
[White "Bachmann, Axel"]
[Black "Souleidis, Georgios"]
[WhiteFideId "3700488"]
[BlackFideId "4206827"]
[WhiteElo "2605"]
[BlackElo "2401"]
[Result "1-0"]
[Round "02"]
[TimeControl "180+2"]
[Date "2023.04.04"]
[WhiteClock "0:00:16"]
[BlackClock "0:00:05"]

1. Nf3 {[%clk 0:03:00]}  Nf6 {[%clk 0:02:59]} 2. c4 {[%clk 0:03:00]}  g6 {[%clk 0:03:00]} 3. b3 {[%clk 0:03:00]}  Bg7 {[%clk 0:03:01]} 4. Bb2 {[%clk 0:03:01]}  b6 {[%clk 0:03:01]} 5. g3 {[%clk 0:02:56]}  Bb7 {[%clk 0:03:01]} 6. Bg2 {[%clk 0:02:57]}  O-O {[%clk 0:03:01]} 7. O-O {[%clk 0:02:57]}  c5 {[%clk 0:03:01]} 8. d4 {[%clk 0:02:56]}  cxd4 {[%clk 0:02:59]} 9. Qxd4 {[%clk 0:02:57]}  Nh5 {[%clk 0:02:35]} 10. Qd2 {[%clk 0:02:56]}  Bxb2 {[%clk 0:02:35]} 11. Qxb2 {[%clk 0:02:56]}  d6 {[%clk 0:02:33]} 12. Nc3 {[%clk 0:02:56]}  Nd7 {[%clk 0:02:33]} 13. Rfd1 {[%clk 0:02:50]}  Rc8 {[%clk 0:02:33]} 14. Rd2 {[%clk 0:02:43]}  Nhf6 {[%clk 0:02:32]} 15. Rad1 {[%clk 0:02:35]}  Ne4 {[%clk 0:02:27]} 16. Nxe4 {[%clk 0:02:35]}  Bxe4 {[%clk 0:02:28]} 17. Rd4 {[%clk 0:02:30]}  Bc6 {[%clk 0:02:24]} 18. Qd2 {[%clk 0:02:26]}  Qc7 {[%clk 0:02:20]} 19. Qh6 {[%clk 0:02:18]}  Bxf3 {[%clk 0:02:05]} 20. Bxf3 {[%clk 0:02:18]}  Rfd8 {[%clk 0:02:01]} 21. h4 {[%clk 0:02:16]}  Nf8 {[%clk 0:01:58]} 22. h5 {[%clk 0:02:14]}  e6 {[%clk 0:01:36]} 23. Qg5 {[%clk 0:01:54]}  Qc5 {[%clk 0:01:20]} 24. Qxc5 {[%clk 0:01:39]}  bxc5 {[%clk 0:01:15]} 25. Rxd6 {[%clk 0:01:38]}  Rxd6 {[%clk 0:01:16]} 26. Rxd6 {[%clk 0:01:38]}  Kg7 {[%clk 0:01:11]} 27. hxg6 {[%clk 0:01:31]}  hxg6 {[%clk 0:01:09]} 28. Kf1 {[%clk 0:01:31]}  Kf6 {[%clk 0:01:02]} 29. Ke1 {[%clk 0:01:28]}  Ke7 {[%clk 0:00:59]} 30. Ra6 {[%clk 0:01:28]}  Rc7 {[%clk 0:01:00]} 31. Kd2 {[%clk 0:01:27]}  Nd7 {[%clk 0:00:59]} 32. Kc3 {[%clk 0:01:26]}  f5 {[%clk 0:00:52]} 33. g4 {[%clk 0:01:10]}  Ne5 {[%clk 0:00:43]} 34. gxf5 {[%clk 0:01:10]}  gxf5 {[%clk 0:00:43]} 35. a3 {[%clk 0:01:08]}  Kf6 {[%clk 0:00:39]} 36. Bd5 {[%clk 0:01:06]}  Re7 {[%clk 0:00:36]} 37. b4 {[%clk 0:01:00]}  Nd7 {[%clk 0:00:26]} 38. Bf3 {[%clk 0:00:47]}  cxb4+ {[%clk 0:00:20]} 39. axb4 {[%clk 0:00:48]}  Ne5 {[%clk 0:00:21]} 40. b5 {[%clk 0:00:41]}  Kf7 {[%clk 0:00:21]} 41. c5 {[%clk 0:00:39]}  Rc7 {[%clk 0:00:20]} 42. Kb4 {[%clk 0:00:36]}  Nd7 {[%clk 0:00:11]} 43. c6 {[%clk 0:00:27]}  Ne5 {[%clk 0:00:04]} 44. Kc5 {[%clk 0:00:26]}  Ke7 {[%clk 0:00:04]} 45. Ra1 {[%clk 0:00:25]}  Nf7 {[%clk 0:00:03]} 46. b6 {[%clk 0:00:17]}  axb6+ {[%clk 0:00:04]} 47. Kxb6 {[%clk 0:00:18]}  Rc8 {[%clk 0:00:04]} 48. Ra7+ {[%clk 0:00:17]}  Kd6 {[%clk 0:00:05]} 49. Rd7+ {[%clk 0:00:16]} 1-0


[Site "https://www.chess.com"]

[Event "Titled Tuesday Blitz April 4 Early 2023"]
[White "Dobre, Claudiu-Cristian"]
[Black "Kovalev, Vladislav"]
[WhiteFideId "1211854"]
[BlackFideId "13504398"]
[WhiteElo "2207"]
[BlackElo "2555"]
[Result "0-1"]
[Round "02"]
[TimeControl "180+2"]
[Date "2023.04.04"]
[WhiteClock "0:00:02"]
[BlackClock "0:00:23"]

1. e4 {[%clk 0:02:56]}  e5 {[%clk 0:03:00]} 2. Nf3 {[%clk 0:02:53]}  Nc6 {[%clk 0:03:00]} 3. d4 {[%clk 0:02:51]}  exd4 {[%clk 0:03:00]} 4. Nxd4 {[%clk 0:02:51]}  Nf6 {[%clk 0:03:01]} 5. Nxc6 {[%clk 0:02:49]}  bxc6 {[%clk 0:03:02]} 6. Bd3 {[%clk 0:02:45]}  d6 {[%clk 0:02:59]} 7. O-O {[%clk 0:02:33]}  g6 {[%clk 0:02:59]} 8. b3 {[%clk 0:02:26]}  Bg7 {[%clk 0:02:59]} 9. Bb2 {[%clk 0:02:26]}  O-O {[%clk 0:03:00]} 10. h3 {[%clk 0:02:17]}  Re8 {[%clk 0:02:57]} 11. Nd2 {[%clk 0:02:16]}  Nxe4 {[%clk 0:02:46]} 12. Bxg7 {[%clk 0:02:15]}  Nxd2 {[%clk 0:02:47]} 13. Qxd2 {[%clk 0:02:14]}  Kxg7 {[%clk 0:02:47]} 14. Qc3+ {[%clk 0:02:14]}  Kg8 {[%clk 0:02:41]} 15. Qxc6 {[%clk 0:02:14]}  Rb8 {[%clk 0:02:38]} 16. Rfe1 {[%clk 0:02:12]}  Rxe1+ {[%clk 0:02:31]} 17. Rxe1 {[%clk 0:02:11]}  Bb7 {[%clk 0:02:31]} 18. Qc4 {[%clk 0:02:11]}  Qd7 {[%clk 0:02:23]} 19. Qg4 {[%clk 0:02:08]}  Qxg4 {[%clk 0:02:21]} 20. hxg4 {[%clk 0:02:08]}  Kf8 {[%clk 0:02:22]} 21. g5 {[%clk 0:02:07]}  Bd5 {[%clk 0:02:09]} 22. f3 {[%clk 0:02:00]}  a5 {[%clk 0:02:08]} 23. a4 {[%clk 0:01:54]}  Rb4 {[%clk 0:01:58]} 24. Kf2 {[%clk 0:01:51]}  c5 {[%clk 0:01:42]} 25. Bb5 {[%clk 0:01:39]}  Be6 {[%clk 0:01:41]} 26. g4 {[%clk 0:01:14]}  Ke7 {[%clk 0:01:06]} 27. Bc4 {[%clk 0:01:03]}  Rb8 {[%clk 0:00:53]} 28. Bxe6 {[%clk 0:01:02]}  fxe6 {[%clk 0:00:53]} 29. Rh1 {[%clk 0:01:03]}  Rh8 {[%clk 0:00:53]} 30. f4 {[%clk 0:00:57]}  d5 {[%clk 0:00:44]} 31. Ke3 {[%clk 0:00:57]}  Kd6 {[%clk 0:00:45]} 32. Rh2 {[%clk 0:00:53]}  Kc6 {[%clk 0:00:43]} 33. Rh3 {[%clk 0:00:49]}  Kd6 {[%clk 0:00:44]} 34. Kd3 {[%clk 0:00:40]}  Rf8 {[%clk 0:00:41]} 35. Ke3 {[%clk 0:00:39]}  Rf7 {[%clk 0:00:42]} 36. Rh2 {[%clk 0:00:24]}  e5 {[%clk 0:00:41]} 37. fxe5+ {[%clk 0:00:23]}  Kxe5 {[%clk 0:00:42]} 38. Rh3 {[%clk 0:00:20]}  d4+ {[%clk 0:00:39]} 39. Kd3 {[%clk 0:00:20]}  Kd5 {[%clk 0:00:39]} 40. c4+ {[%clk 0:00:19]}  Ke5 {[%clk 0:00:39]} 41. Ke2 {[%clk 0:00:17]}  Ke4 {[%clk 0:00:39]} 42. Ke1 {[%clk 0:00:14]}  d3 {[%clk 0:00:34]} 43. Kd2 {[%clk 0:00:14]}  Rf2+ {[%clk 0:00:34]} 44. Ke1 {[%clk 0:00:13]}  Rg2 {[%clk 0:00:29]} 45. Rxh7 {[%clk 0:00:12]}  Rxg4 {[%clk 0:00:30]} 46. Rc7 {[%clk 0:00:11]}  Kd4 {[%clk 0:00:30]} 47. Kd2 {[%clk 0:00:10]}  Rg2+ {[%clk 0:00:30]} 48. Ke1 {[%clk 0:00:09]}  Rxg5 {[%clk 0:00:29]} 49. Rf7 {[%clk 0:00:06]}  Kc3 {[%clk 0:00:27]} 50. Rf1 {[%clk 0:00:06]}  Rg2 {[%clk 0:00:26]} 51. Rf6 {[%clk 0:00:02]}  Rg1+ {[%clk 0:00:26]} 52. Kf2 {[%clk 0:00:02]}  d2 {[%clk 0:00:23]} 0-1


[Site "https://www.chess.com"]